bitfinex/quotes_SOLUSD_20241220
["timestamp","ask_amount","ask_price","bid_price","bid_amount"]
[1734659925499,23.0309754,194.08,194.0,23.0309754]
[1734659925842,23.0309754,194.05,193.97,23.0309754]
[1734659925989,23.0309754,194.04,193.97,23.0309754]
[1734659926191,23.0309754,194.04,193.96,23.0309754]
[1734659927211,23.0309754,194.04,193.97,23.0309754]
[1734659927393,23.0309754,193.99,193.9,6.0785]
[1734659927604,23.0309754,193.98,193.91,23.0309754]
[1734659928086,23.0309754,193.98,193.89,1.6548]
[1734659928087,23.0309754,194.02,193.95,23.0309754]
[1734659928287,29.4030754,194.05,193.98,23.0309754]
[1734659928491,23.0309754,194.03,193.96,23.0309754]
[1734659928704,23.0309754,194.04,193.97,23.0309754]
[1734659928911,29.4030754,194.05,193.98,23.0309754]
[1734659929422,23.0309754,194.07,194.0,23.0309754]
[1734659929712,23.0309754,194.08,194.01,23.0309754]
[1734659930286,23.0309754,194.07,194.0,23.0309754]
[1734659933502,23.0309754,194.08,194.0,23.0309754]
[1734659933706,23.0309754,194.08,194.01,23.0309754]
[1734659933915,23.0309754,194.08,193.99,20.0]
[1734659933916,23.0309754,194.09,194.02,23.0309754]
[1734659934283,6.4387,194.1,194.03,23.0309754]
[1734659934484,23.0309754,194.09,194.02,23.0309754]
[1734659935002,23.0309754,194.1,194.03,23.0309754]
[1734659935909,23.0309754,194.1,194.02,23.0309754]
[1734659936894,23.0309754,194.1,194.03,23.0309754]
[1734659937204,23.0309754,194.11,194.03,23.0309754]
[1734659937398,23.0309754,194.1,194.02,23.0309754]
[1734659937600,23.0309754,194.11,194.03,46.8078594]
[1734659937795,23.0309754,194.17,194.1,23.0309754]
[1734659937994,23.0309754,194.17,194.09,23.0309754]
[1734659938713,23.0309754,194.16,194.09,23.0309754]
[1734659939212,23.0309754,194.15,194.07,23.0309754]
[1734659939509,23.0309754,194.13,194.06,23.0309754]
[1734659940414,23.0309754,194.13,194.05,23.0309754]
[1734659941687,23.0309754,194.09,194.02,23.0309754]
[1734659942710,23.0309754,194.09,194.01,23.0309754]
[1734659943105,23.0309754,194.08,194.01,23.0309754]
[1734659943283,23.0309754,194.07,194.0,23.0309754]
[1734659943489,23.0309754,194.06,193.99,23.0309754]
[1734659943789,23.0309754,194.06,193.98,23.0309754]
[1734659943988,23.0309754,194.05,193.97,23.0309754]
[1734659944317,23.0309754,194.02,193.94,23.0309754]
[1734659944697,23.0309754,194.03,193.96,23.0309754]
[1734659945913,23.0309754,194.02,193.95,23.0309754]
[1734659947818,23.0309754,194.03,193.96,23.0309754]
[1734659948512,23.0309754,194.02,193.95,23.0309754]
[1734659948704,23.0309754,194.04,193.97,23.0309754]
[1734659949103,23.0309754,194.03,193.96,23.0309754]
[1734659950007,23.0309754,194.02,193.95,23.0309754]
[1734659950304,23.0309754,194.03,193.96,23.0309754]
[1734659950513,23.0309754,194.0,193.93,23.0309754]
[1734659950996,23.0309754,193.99,193.92,23.0309754]
[1734659951194,22.22083345,194.09,193.9,23.0309754]
[1734659951195,23.0309754,193.97,193.9,23.0309754]
[1734659951590,23.0309754,193.95,193.88,23.0309754]
[1734659951795,23.0309754,193.94,193.87,23.0309754]
[1734659952010,6.3353,193.99,193.83,2.07107129]
[1734659952213,23.0309754,193.91,193.84,23.0309754]
[1734659952422,23.0309754,193.89,193.8,1.5182]
[1734659952598,23.0309754,193.89,193.82,23.0309754]
[1734659952797,23.0309754,193.91,193.83,23.0309754]
[1734659953108,23.0309754,193.91,193.8,1.5182]
[1734659953109,23.0309754,193.91,193.84,23.0309754]
[1734659953314,23.0309754,193.92,193.85,23.0309754]
[1734659953508,23.0309754,193.91,193.84,23.0309754]
[1734659954027,23.0309754,193.92,193.85,23.0309754]
[1734659954694,23.0309754,193.95,193.88,23.0309754]
[1734659954900,6.3353,193.99,193.93,23.0309754]
[1734659955211,6.3353,193.99,193.94,23.0309754]
[1734659955417,23.0309754,194.01,193.94,23.0309754]
[1734659955619,23.0309754,194.0,193.94,23.0309754]
[1734659955840,23.0309754,194.01,193.94,23.0309754]
[1734659956503,6.3355,194.04,193.88,2.79469916]
[1734659956504,6.3355,194.04,193.98,23.0309754]
[1734659956702,23.0309754,194.05,193.98,23.0309754]
[1734659957027,23.0309754,194.02,193.95,23.0309754]
[1734659957228,23.0309754,194.02,193.94,23.0309754]
[1734659957520,23.0309754,194.02,193.95,23.0309754]
[1734659957922,23.0309754,194.03,193.96,23.0309754]
[1734659958098,23.0309754,194.05,193.97,23.0309754]
[1734659958302,7.9961,194.08,193.96,23.0309754]
[1734659958303,23.0309754,194.03,193.96,23.0309754]
[1734659958503,23.0309754,194.05,193.97,23.0309754]
[1734659958920,23.0309754,194.04,193.97,23.0309754]
[1734659959905,23.0309754,194.03,193.96,23.0309754]
[1734659960105,23.0309754,194.01,193.94,23.0309754]
[1734659960518,23.0309754,193.99,193.91,23.0309754]
[1734659960714,23.0309754,194.04,193.97,23.0309754]
[1734659961126,23.0309754,194.03,193.95,23.0309754]
[1734659961524,23.0309754,194.01,193.94,23.0309754]
[1734659961925,23.0309754,194.01,193.93,23.0309754]
[1734659962118,23.0309754,194.01,193.94,23.0309754]
[1734659962324,23.0309754,194.02,193.94,23.0309754]
[1734659963809,23.0309754,194.03,193.96,23.0309754]
[1734659964009,23.0309754,194.04,193.96,23.0309754]
[1734659964431,7.9961,194.08,193.98,23.0309754]
[1734659964432,23.0309754,194.05,193.98,23.0309754]
[1734659964609,23.0309754,194.06,193.98,23.0309754]
[1734659965009,7.9961,194.08,193.94,0.77308697]
[1734659965010,23.0309754,194.07,193.99,23.0309754]
[1734659965513,23.0309754,194.04,193.97,23.0309754]
[1734659965841,23.0309754,194.04,193.96,23.0309754]
[1734659966654,23.0309754,194.03,193.96,23.0309754]
[1734659966837,20.8773,194.08,193.96,23.0309754]
[1734659966838,23.0309754,194.04,193.96,23.0309754]
[1734659967217,23.0309754,194.03,193.95,23.0309754]
[1734659967532,23.0309754,194.03,193.96,23.0309754]
[1734659967724,23.0309754,194.04,193.96,23.0309754]
[1734659968125,23.0309754,194.03,193.96,23.0309754]
[1734659968725,23.0309754,194.03,193.95,23.0309754]
[1734659969018,23.0309754,194.02,193.95,23.0309754]
[1734659969453,23.0309754,193.99,193.91,23.0309754]
[1734659969654,23.0309754,193.96,193.88,23.0309754]
[1734659969957,23.0309754,193.94,193.86,24.5919754]
[1734659970159,23.0309754,193.94,193.87,23.0309754]
[1734659970652,23.0309754,193.97,193.9,23.0309754]
[1734659971339,23.0309754,193.97,193.89,23.0309754]
[1734659973244,23.0309754,193.96,193.88,23.0309754]
[1734659973547,23.0309754,193.95,193.87,23.0309754]
[1734659975225,23.0309754,193.95,193.84,3.03581664]
[1734659975226,23.0309754,193.9,193.82,23.0309754]
[1734659975541,23.0309754,193.85,193.77,23.0309754]
[1734659975849,23.0309754,193.81,193.73,23.6792662]
[1734659977141,23.0309754,193.81,193.74,23.0309754]
[1734659977321,23.0309754,193.81,193.73,23.6792662]
[1734659977519,23.0309754,193.81,193.74,23.0309754]
[1734659978137,23.0309754,193.81,193.73,23.6792662]
[1734659980259,23.0309754,193.84,193.77,23.0309754]
[1734659980459,23.0309754,193.86,193.79,23.0309754]
[1734659980929,23.0309754,193.85,193.78,23.0309754]
[1734659981122,23.0309754,193.85,193.77,23.0309754]
[1734659981523,23.0309754,193.84,193.77,23.0309754]
[1734659981751,23.0309754,193.85,193.77,23.0309754]
[1734659981952,1.6131,193.87,193.75,23.0309754]
[1734659981953,23.0309754,193.83,193.75,23.0309754]
[1734659982241,23.0309754,193.79,193.73,0.6482908]
[1734659986155,23.0309754,193.82,193.74,23.0309754]
[1734659986330,23.0309754,193.84,193.77,23.0309754]
[1734659986927,23.0309754,193.85,193.78,46.8078594]
[1734659987257,6.5062,193.88,193.81,23.0309754]
[1734659987430,23.0309754,193.9,193.83,23.0309754]
[1734659988128,23.0309754,193.89,193.82,23.0309754]
[1734659989043,12.8899,193.96,193.82,23.0309754]
[1734659989044,23.0309754,193.96,193.88,23.0309754]
[1734659989354,23.0309754,193.94,193.87,23.0309754]
[1734659989664,23.0309754,193.93,193.85,46.8078594]
[1734659990168,23.0309754,193.93,193.86,23.0309754]
[1734659990336,23.0309754,193.91,193.84,23.0309754]
[1734659990864,23.0309754,193.91,193.83,23.0309754]
[1734659991242,23.0309754,193.91,193.82,23.776884]
[1734659991243,23.0309754,193.89,193.82,46.8078594]
[1734659991443,23.0309754,193.91,193.84,23.0309754]
[1734659991841,12.74059576,194.03,193.91,20.0]
[1734659992041,29.4831754,194.03,193.95,23.0309754]
[1734659993035,23.0309754,194.01,193.94,23.0309754]
[1734659993437,23.0309754,194.03,193.96,23.0309754]
[1734659993642,23.0309754,194.03,193.94,23.776884]
[1734659993643,23.0309754,194.03,193.95,23.0309754]
[1734659993855,23.0309754,194.03,193.96,23.0309754]
[1734659994041,23.0309754,194.05,193.97,23.776884]
[1734659994358,23.0309754,194.11,194.03,23.0309754]
[1734659994543,23.0309754,194.14,194.07,23.0309754]
[1734659994749,8.0967,194.19,194.09,23.0309754]
[1734659995050,19.29103134,194.23,194.12,23.0309754]
[1734659995246,23.0309754,194.2,194.12,23.0309754]
[1734659995452,23.0309754,194.21,194.13,23.0309754]
[1734659995638,30.89077921,194.23,194.15,23.0309754]
[1734659995833,23.0309754,194.26,194.18,23.0309754]
[1734659996040,23.0309754,194.26,194.19,23.0309754]
[1734659996351,23.0309754,194.24,194.16,23.0309754]
[1734659996570,23.0309754,194.23,194.15,23.0309754]
[1734659996759,23.0309754,194.2,194.12,23.0309754]
[1734659997060,37.28938124,194.2,194.13,23.776884]
[1734659997963,37.28938124,194.19,194.13,23.776884]
[1734659998338,37.28938124,194.2,194.13,23.776884]
[1734659998757,37.28938124,194.19,194.12,37.28938124]
[1734659999558,37.28938124,194.2,194.12,37.28938124]
[1734659999759,37.28938124,194.19,194.12,37.28938124]
[1734659999945,37.28938124,194.2,194.12,37.28938124]
[1734660000152,37.28938124,194.2,194.14,37.28938124]
[1734660000663,37.28938124,194.19,194.13,23.776884]
[1734660000898,37.28938124,194.21,194.13,23.776884]
[1734660001068,37.28938124,194.25,194.17,23.776884]
[1734660001275,37.28938124,194.29,194.21,37.28938124]
[1734660001443,37.28938124,194.3,194.23,23.776884]
[1734660001647,37.28938124,194.29,194.23,23.776884]
[1734660002160,37.28938124,194.28,194.21,37.28938124]
[1734660002361,37.28938124,194.23,194.16,23.776884]
[1734660002689,37.28938124,194.27,194.2,61.06626524]
[1734660002840,37.28938124,194.26,194.13,0.7721887]
[1734660003161,6.4304,194.3,194.1,3.0643991]
[1734660003345,20.0,194.26,194.03,8.0988]
[1734660003546,20.0,194.26,194.04,0.77262318]
[1734660003749,20.0,194.26,194.06,3.04752074]
[1734660004048,37.28938124,194.16,194.08,37.28938124]
[1734660004257,37.28938124,194.12,194.04,37.28938124]
[1734660004467,37.28938124,194.06,193.99,37.28938124]
[1734660004765,37.28938124,194.15,193.99,0.77307894]
[1734660004967,6.6415,194.18,194.0,0.12549]
[1734660005263,20.0,194.15,194.01,0.7727683]
[1734660005751,6.6415,194.18,194.02,23.776884]
[1734660005951,20.0,194.2,194.05,0.12549]
[1734660006157,37.28938124,194.23,194.15,37.28938124]
[1734660006364,37.28938124,194.18,194.1,37.28938124]
[1734660006556,37.28938124,194.26,194.1,37.28938124]
[1734660006557,37.28938124,194.17,194.1,37.28938124]
[1734660006857,37.28938124,194.13,194.03,20.0]
[1734660007166,1.6093,194.21,194.04,0.7728282]
[1734660007867,37.28938124,194.15,194.07,37.28938124]
[1734660008165,37.28938124,194.14,194.06,37.28938124]
[1734660008392,37.28938124,194.14,194.07,23.776884]
[1734660008846,1.6093,194.21,193.98,0.77275817]
[1734660008847,37.28938124,194.09,193.98,0.77275817]
[1734660009051,37.28938124,194.07,193.99,37.28938124]
[1734660009273,37.28938124,194.15,193.94,37.28938124]
[1734660009274,37.28938124,194.03,193.94,37.28938124]
[1734660009769,37.28938124,194.08,194.0,37.28938124]
[1734660010281,37.28938124,194.07,193.99,37.28938124]
[1734660010647,37.28938124,194.07,194.0,23.776884]
[1734660011072,37.28938124,194.06,193.99,23.776884]
[1734660011270,37.28938124,194.06,193.98,37.28938124]
[1734660011466,37.28938124,194.04,193.97,37.28938124]
[1734660011671,37.28938124,194.01,193.94,38.0624308]
[1734660011967,37.28938124,194.03,193.97,37.28938124]
[1734660012144,37.28938124,194.03,193.96,37.28938124]
[1734660012658,37.28938124,194.09,194.01,37.28938124]
[1734660012963,37.28938124,194.09,194.02,37.28938124]
[1734660013174,37.28938124,194.11,194.04,37.28938124]
[1734660013345,37.28938124,194.12,194.05,37.28938124]
[1734660013545,37.28938124,194.13,194.05,37.28938124]
[1734660013748,37.28938124,194.16,194.08,37.28938124]
[1734660013991,37.28938124,194.18,194.11,37.28938124]
[1734660014142,37.28938124,194.23,194.16,37.28938124]
[1734660014345,37.28938124,194.24,194.16,37.28938124]
[1734660014555,1.5915,194.3,194.13,0.12549]
[1734660014761,37.28938124,194.25,194.18,37.28938124]
[1734660014970,37.28938124,194.25,194.17,37.28938124]
[1734660015280,37.28938124,194.24,194.16,37.28938124]
[1734660015490,6.6453,194.41,194.25,20.0]
[1734660015774,37.28938124,194.38,194.3,37.28938124]
[1734660015972,37.28938124,194.37,194.29,37.28938124]
[1734660016160,37.28938124,194.37,194.3,37.28938124]
[1734660016353,37.28938124,194.35,194.28,37.28938124]
[1734660016553,37.28938124,194.34,194.26,37.28938124]
[1734660016785,37.28938124,194.31,194.23,37.28938124]
[1734660017085,37.28938124,194.3,194.22,37.28938124]
[1734660017286,37.28938124,194.27,194.19,37.28938124]
[1734660017451,37.28938124,194.22,194.14,37.28938124]
[1734660017644,6.5751,194.27,194.14,37.28938124]
[1734660017862,37.28938124,194.18,194.11,37.28938124]
[1734660018269,37.28938124,194.18,194.1,37.28938124]
[1734660018472,20.0,194.23,194.13,37.28938124]
[1734660018665,37.28938124,194.2,194.13,37.28938124]
[1734660019059,37.28938124,194.19,194.11,37.28938124]
[1734660019576,37.28938124,194.21,194.12,37.28938124]
[1734660019765,57.28938124,194.23,194.15,37.28938124]
[1734660020068,37.28938124,194.22,194.11,0.77254716]
[1734660020268,37.28938124,194.2,194.12,37.28938124]
[1734660020475,37.28938124,194.15,194.08,37.28938124]
[1734660020678,37.28938124,194.14,194.06,37.28938124]
[1734660020877,37.28938124,194.13,194.05,37.28938124]
[1734660021091,37.28938124,194.11,194.03,37.28938124]
[1734660022381,37.28938124,194.07,193.99,37.28938124]
[1734660022981,37.28938124,194.09,194.01,37.28938124]
[1734660023297,37.28938124,194.04,193.98,37.28938124]
[1734660023457,37.28938124,194.04,193.96,37.28938124]
[1734660023658,20.0,194.11,193.99,37.28938124]
[1734660023854,37.28938124,194.06,193.98,37.28938124]
[1734660024059,37.28938124,194.04,193.97,37.28938124]
[1734660024302,20.0,194.12,193.89,2.36145328]
[1734660024465,37.28938124,194.01,193.94,37.28938124]
[1734660024798,20.0,194.11,193.95,0.77329402]
[1734660024962,6.2434,194.15,193.96,0.12549]
[1734660025165,6.2434,194.15,193.98,0.12549]
[1734660025372,6.2434,194.15,194.0,0.12549]
[1734660025672,37.28938124,194.17,194.1,37.28938124]
[1734660025981,37.28938124,194.13,194.06,37.28938124]
[1734660026168,37.28938124,194.11,194.03,57.28938124]
[1734660026359,37.28938124,194.13,194.05,37.28938124]
[1734660026566,37.28938124,194.15,194.07,37.28938124]
[1734660026783,37.28938124,194.13,194.05,37.28938124]
[1734660027880,37.28938124,194.12,194.05,37.28938124]
[1734660028079,32.4039,194.22,194.01,37.28938124]
[1734660028080,37.28938124,194.08,194.01,37.28938124]
[1734660028479,37.28938124,194.15,194.02,37.28938124]
[1734660028480,37.28938124,194.1,194.02,37.28938124]
[1734660028693,37.28938124,194.07,193.99,37.28938124]
[1734660028993,37.28938124,194.06,193.98,37.28938124]
[1734660029203,37.28938124,194.04,193.96,37.28938124]
[1734660029370,37.28938124,194.03,193.96,37.28938124]
[1734660029570,37.28938124,194.06,193.98,37.28938124]
[1734660030194,20.0,194.09,193.89,1.5883]
[1734660030497,37.28938124,193.99,193.92,37.28938124]
[1734660031087,37.28938124,194.01,193.94,37.28938124]
[1734660031386,37.28938124,194.05,193.98,37.28938124]
[1734660031582,37.28938124,194.03,193.95,37.28938124]
[1734660031792,37.28938124,194.02,193.94,37.28938124]
[1734660032165,37.28938124,194.01,193.93,37.28938124]
[1734660032579,37.28938124,193.99,193.92,37.28938124]
[1734660033081,12.8825,194.07,193.9,37.28938124]
[1734660033082,37.28938124,193.98,193.9,37.28938124]
[1734660033269,37.28938124,193.96,193.89,37.28938124]
[1734660033460,37.28938124,194.05,193.95,37.28938124]
[1734660033662,37.28938124,194.06,193.96,0.77305985]
[1734660033883,12.8806,194.09,193.88,0.7730581]
[1734660034394,12.8806,194.09,193.89,20.12549]
[1734660034568,12.8806,194.09,193.9,0.77328291]
[1734660034769,37.28938124,194.01,193.93,37.28938124]
[1734660034976,37.28938124,194.0,193.93,37.28938124]
[1734660035274,20.0,194.06,193.87,3.81174052]
[1734660035275,37.28938124,193.97,193.87,3.81174052]
[1734660035464,37.28938124,193.99,193.91,37.28938124]
[1734660035659,20.0,194.01,193.87,3.03844454]
[1734660036163,20.0,194.0,193.83,0.77337805]
[1734660036364,20.0,194.0,193.82,7.8771]
[1734660036658,20.0,194.0,193.85,37.28938124]
[1734660036659,37.28938124,193.92,193.85,37.28938124]
[1734660037272,37.28938124,193.93,193.86,37.28938124]
[1734660037997,37.28938124,193.97,193.89,37.28938124]
[1734660038199,37.28938124,193.97,193.9,37.28938124]
[1734660038493,37.28938124,193.95,193.88,37.28938124]
[1734660038806,37.28938124,193.97,193.9,37.28938124]
[1734660038969,37.28938124,193.98,193.91,37.28938124]
[1734660039169,37.28938124,194.0,193.93,37.28938124]
[1734660039596,37.28938124,194.02,193.94,37.28938124]
[1734660039868,37.28938124,194.01,193.94,37.28938124]
[1734660040101,37.28938124,194.0,193.93,37.28938124]
[1734660040264,37.28938124,193.98,193.9,37.28938124]
[1734660040464,37.28938124,193.94,193.87,37.28938124]
[1734660040687,20.0,194.0,193.84,3.11297279]
[1734660041165,37.28938124,193.94,193.87,37.28938124]
[1734660041475,37.28938124,193.92,193.85,37.28938124]
[1734660041677,37.28938124,193.94,193.87,37.28938124]
[1734660041879,37.28938124,193.92,193.85,37.28938124]
[1734660042093,20.0,193.95,193.77,0.77357899]
[1734660042481,20.0,193.95,193.78,3.16761193]
[1734660042682,20.0,193.95,193.79,0.77373924]
[1734660043187,37.28938124,193.88,193.81,37.28938124]
[1734660043393,37.28938124,193.88,193.8,37.28938124]
[1734660043606,37.28938124,193.88,193.81,37.28938124]
[1734660044106,37.28938124,193.88,193.8,37.28938124]
[1734660045179,1.6044,193.99,193.82,0.12549]
[1734660045386,37.28938124,193.97,193.9,37.28938124]
[1734660045620,37.28938124,193.96,193.89,37.28938124]
[1734660046406,37.28938124,194.02,193.94,37.28938124]
[1734660046585,37.28938124,194.01,193.93,37.28938124]
[1734660046781,37.28938124,194.01,193.95,37.28938124]
[1734660047107,6.0363,194.09,194.0,37.28938124]
[1734660047399,12.8772,194.15,194.01,0.77291231]
[1734660047705,6.0363,194.17,194.01,0.77291231]
[1734660048109,37.28938124,194.12,194.05,37.28938124]
[1734660048294,37.28938124,194.11,194.04,37.28938124]
[1734660048496,37.28938124,194.1,194.03,37.28938124]
[1734660048696,37.28938124,194.11,194.03,37.28938124]
[1734660048899,37.28938124,194.1,194.01,0.77291231]
[1734660049098,37.28938124,194.1,194.03,37.28938124]
[1734660049315,37.28938124,194.07,194.0,37.28938124]
[1734660049732,37.28938124,194.09,194.01,37.28938124]
[1734660050097,37.28938124,194.09,193.99,0.77288313]
[1734660050098,37.28938124,194.09,194.02,37.28938124]
[1734660050301,37.28938124,194.1,194.03,37.28938124]
[1734660050517,37.28938124,194.09,194.01,37.28938124]
[1734660050699,37.28938124,194.09,194.02,37.28938124]
[1734660051224,37.28938124,194.11,194.04,37.28938124]
[1734660051431,37.28938124,194.11,194.03,37.28938124]
[1734660051841,37.28938124,194.1,194.02,37.28938124]
[1734660052397,37.28938124,194.1,194.03,37.28938124]
[1734660052598,37.28938124,194.1,194.02,37.28938124]
[1734660052818,37.28938124,194.1,194.03,37.28938124]
[1734660053007,37.28938124,194.11,194.04,37.28938124]
[1734660053227,37.28938124,194.1,194.03,37.28938124]
[1734660053530,37.28938124,194.12,194.04,37.28938124]
[1734660053728,37.28938124,194.15,194.08,37.28938124]
[1734660054030,37.28938124,194.22,194.14,37.28938124]
[1734660054192,37.28938124,194.21,194.14,37.28938124]
[1734660054819,37.28938124,194.23,194.15,38.06176611]
[1734660054999,37.28938124,194.28,194.21,37.28938124]
[1734660055195,37.28938124,194.32,194.25,37.28938124]
[1734660055401,37.28938124,194.32,194.22,0.77210561]
[1734660055606,6.1436,194.35,194.22,0.77210561]
[1734660056805,37.28938124,194.32,194.25,37.28938124]
[1734660057823,37.28938124,194.31,194.24,37.28938124]
[1734660058120,37.28938124,194.27,194.19,38.06140968]
[1734660059021,37.28938124,194.27,194.19,37.28938124]
[1734660059199,37.28938124,194.27,194.2,37.28938124]
[1734660059396,37.28938124,194.27,194.19,37.28938124]
[1734660059601,37.28938124,194.28,194.2,37.28938124]
[1734660061197,37.28938124,194.29,194.22,37.28938124]
[1734660061403,37.28938124,194.28,194.2,37.28938124]
[1734660061610,37.28938124,194.29,194.22,37.28938124]
[1734660062825,37.28938124,194.31,194.23,37.28938124]
[1734660063022,37.28938124,194.31,194.24,37.28938124]
[1734660063332,37.28938124,194.25,194.15,37.28938124]
[1734660063628,20.0,194.31,194.11,1.5913]
[1734660063926,20.0,194.27,194.07,0.77250665]
[1734660064122,20.0,194.26,194.05,2.41176894]
[1734660064321,20.0,194.26,194.05,0.77266894]
[1734660064516,27.44319081,194.26,194.01,0.77270896]
[1734660064714,37.28938124,194.12,194.05,37.28938124]
[1734660064915,37.28938124,194.11,194.04,37.28938124]
[1734660065119,37.28938124,194.08,194.01,37.28938124]
[1734660065344,43.30028124,194.15,194.0,37.28938124]
[1734660065345,37.28938124,194.07,194.0,37.28938124]
[1734660065521,37.28938124,194.08,194.01,37.28938124]
[1734660065839,20.0,194.17,194.03,0.12549]
[1734660066019,20.0,194.17,194.04,0.77263893]
[1734660066219,6.624,194.2,194.04,0.77263893]
[1734660066425,6.624,194.2,194.05,0.12549]
[1734660066751,43.60948124,194.27,194.19,37.28938124]
[1734660066946,6.3201,194.27,194.21,37.28938124]
[1734660067108,37.28938124,194.26,194.19,37.28938124]
[1734660067505,37.28938124,194.26,194.16,0.77217496]
[1734660067506,37.28938124,194.27,194.2,37.28938124]
[1734660067708,7.9401,194.33,194.21,0.77217157]
[1734660067906,37.28938124,194.32,194.25,37.28938124]
[1734660068108,37.28938124,194.31,194.24,37.28938124]
[1734660068325,37.28938124,194.31,194.21,0.77217157]
[1734660068326,37.28938124,194.3,194.23,37.28938124]
[1734660068834,37.28938124,194.24,194.18,0.7720339]
[1734660069135,12.8763,194.16,193.98,45.23854536]
[1734660069314,37.28938124,194.06,193.98,45.23854536]
[1734660069513,37.28938124,194.06,193.98,46.01142192]
[1734660069722,37.28938124,194.06,193.98,38.0622578]
[1734660069950,37.28938124,194.07,193.99,37.28938124]
[1734660070328,38.06148897,194.15,193.98,38.0622578]
[1734660070540,37.28938124,194.04,193.97,37.28938124]
[1734660070743,37.28938124,194.04,193.96,37.28938124]
[1734660070929,37.28938124,194.13,194.04,0.12549]
[1734660071255,9.76339412,194.23,194.04,0.77261507]
[1734660071256,0.77210773,194.2,194.04,0.77261507]
[1734660071428,37.28938124,194.1,194.02,37.28938124]
[1734660071613,0.77210773,194.2,194.03,0.77271307]
[1734660071814,37.28938124,194.11,194.04,37.28938124]
[1734660072032,37.28938124,194.14,194.06,37.28938124]
[1734660072210,37.28938124,194.12,194.05,38.18757282]
[1734660072640,37.28938124,194.14,194.06,37.28938124]
[1734660073631,37.28938124,194.14,194.07,23.776884]
[1734660073941,37.28938124,194.14,194.07,24.5495125]
[1734660074111,37.28938124,194.14,194.11,23.776884]
[1734660074619,37.28938124,194.19,194.12,61.06626524]
[1734660074829,37.28938124,194.24,194.16,37.28938124]
[1734660075135,37.28938124,194.24,194.13,33.64976151]
[1734660075136,37.28938124,194.24,194.18,23.776884]
[1734660075519,37.28938124,194.23,194.18,23.776884]
[1734660075834,37.28938124,194.24,194.18,23.776884]
[1734660076210,37.28938124,194.19,194.11,38.06161147]
[1734660076415,37.28938124,194.17,194.12,23.776884]
[1734660076713,37.28938124,194.22,194.15,81.06626524]
[1734660076916,0.77210773,194.21,194.15,43.776884]
[1734660077116,0.77210773,194.29,194.07,13.6539593]
[1734660077435,0.77210773,194.29,194.1,20.0]
[1734660077620,20.0,194.27,194.1,20.0]
[1734660077813,0.77210773,194.26,194.1,20.0]
[1734660078020,23.776884,194.25,194.1,20.0]
[1734660078244,37.28938124,194.16,194.11,20.0]
[1734660078436,37.28938124,194.16,194.12,23.776884]
[1734660078626,37.28938124,194.2,194.13,37.28938124]
[1734660078939,37.28938124,194.22,194.15,23.776884]
[1734660079130,37.28938124,194.21,194.15,23.776884]
[1734660079953,37.28938124,194.22,194.15,23.776884]
[1734660080516,37.28938124,194.21,194.15,23.776884]
[1734660081129,37.28938124,194.19,194.15,23.776884]
[1734660081334,37.28938124,194.19,194.12,20.0]
[1734660081646,37.28938124,194.2,194.13,23.776884]
[1734660081942,37.28938124,194.2,194.16,20.0]
[1734660082148,37.28938124,194.2,194.15,23.776884]
[1734660082346,37.28938124,194.21,194.15,23.776884]
[1734660082936,37.28938124,194.19,194.12,57.28938124]
[1734660083139,37.28938124,194.21,194.16,20.0]
[1734660083552,37.28938124,194.23,194.16,57.28938124]
[1734660083733,37.28938124,194.26,194.19,37.28938124]
[1734660083936,37.28938124,194.25,194.17,38.06168695]
[1734660084249,37.28938124,194.24,194.2,20.0]
[1734660084623,37.28938124,194.24,194.19,20.0]
[1734660085041,37.28938124,194.24,194.2,23.776884]
[1734660085246,37.28938124,194.23,194.2,23.776884]
[1734660085527,37.28938124,194.25,194.2,23.776884]
[1734660085730,0.77210773,194.32,194.24,61.06626524]
[1734660085731,37.28938124,194.32,194.24,61.06626524]
[1734660085948,37.28938124,194.29,194.24,23.776884]
[1734660086143,37.28938124,194.28,194.2,37.28938124]
[1734660086318,37.28938124,194.24,194.16,37.28938124]
[1734660086524,0.77210773,194.35,194.14,23.776884]
[1734660086837,20.0,194.31,194.1,0.77229143]
[1734660087024,20.0,194.26,194.06,15.21998299]
[1734660087220,20.0,194.21,194.06,2.33748299]
[1734660087425,0.77210773,194.2,194.03,6.90866628]
[1734660087627,37.28938124,194.14,194.06,37.28938124]
[1734660087929,37.28938124,194.13,194.06,37.28938124]
[1734660088131,37.28938124,194.14,194.07,37.28938124]
[1734660088327,37.28938124,194.16,194.08,38.06205132]
[1734660088552,37.28938124,194.15,194.09,23.776884]
[1734660088927,37.28938124,194.15,194.08,37.28938124]
[1734660089233,37.28938124,194.15,194.1,20.0]
[1734660089442,37.28938124,194.15,194.08,37.28938124]
[1734660089949,37.28938124,194.15,194.07,57.28938124]
[1734660090126,37.28938124,194.18,194.1,37.28938124]
[1734660090326,37.28938124,194.16,194.08,61.83887965]
[1734660090656,37.28938124,194.13,194.08,23.776884]
[1734660090852,37.28938124,194.15,194.08,23.776884]